fUST/lending_fUST_20251114
["ID","MTS","AMOUNT","RATE_DAILY","PERIOD"]
[393893299,1763075085736,-202.292279,0.0004144,120]
[393893300,1763075085764,-202.292279,0.0004144,120]
[393893301,1763075085789,-280.178679,0.0004144,120]
[393893302,1763075085812,-151.0,0.0004144,120]
[393893303,1763075085836,-151.0,0.0004144,120]
[393893304,1763075085860,-151.0,0.0004144,120]
[393893305,1763075085883,-151.0,0.0004144,120]
[393893306,1763075085906,-158.217985,0.0004144,120]
[393893307,1763075085928,-151.0,0.0004144,120]
[393893308,1763075085951,-151.0,0.0004144,120]
[393893309,1763075085973,-154.473228,0.0004144,120]
[393893310,1763075085997,-151.0,0.0004144,120]
[393893311,1763075086021,-151.0,0.0004144,120]
[393893312,1763075086044,-151.0,0.0004144,120]
[393893313,1763075086067,-151.0,0.0004144,120]
[393893314,1763075086092,-151.0,0.0004144,120]
[393893315,1763075086117,-151.0,0.0004144,120]
[393893316,1763075086141,-151.0,0.0004144,30]
[393893317,1763075086165,-169.907716,0.0004144,120]
[393893318,1763075086190,-169.907716,0.0004144,120]
[393893319,1763075086217,-169.907716,0.0004144,120]
[393893320,1763075086241,-169.907716,0.0004144,120]
[393893321,1763075086269,-151.0,0.0004144,120]
[393893322,1763075086293,-151.0,0.0004144,120]
[393893323,1763075086317,-151.0,0.0004144,120]
[393893324,1763075086339,-151.0,0.0004144,120]
[393893325,1763075086364,-153.468296,0.00041619,31]
[393893326,1763075086387,-151.0,0.00042526,120]
[393893327,1763075086412,-151.0,0.00042526,120]
[393893328,1763075086435,-151.0,0.00042526,30]
[393893329,1763075086459,-167.19244,0.00042526,120]
[393893330,1763075086482,-136152.1588,0.0004322,30]
[393893331,1763075086507,-2042692.190504,0.0004344,30]
[393893332,1763075094543,-765655.762696,0.0004344,30]
[393893333,1763075094569,-166.59136,0.0004344,120]
[393893334,1763075094594,-162.948922,0.0004344,30]
[393893335,1763075094618,-1220.956427,0.0004344,120]
[393893336,1763075094643,-1220.956427,0.0004344,120]
[393893337,1763075094667,-1220.956427,0.0004344,120]
[393893338,1763075094691,-1220.956427,0.0004344,120]
[393893339,1763075094716,-158.831124,0.0004344,120]
[393893340,1763075094740,-157.256183,0.0004344,120]
[393893341,1763075094763,-151.0,0.0004344,120]
[393893342,1763075094788,-151.0,0.0004344,120]
[393893343,1763075094812,-151.0,0.0004344,120]
[393893344,1763075094836,-151.0,0.0004344,120]
[393893345,1763075094859,-151.0,0.0004344,120]
[393893346,1763075094883,-282.536784,0.0004344,120]
[393893347,1763075094907,-151.0,0.0004344,120]
[393893348,1763075094932,-202.292279,0.0004344,120]
[393893349,1763075094957,-202.292279,0.0004344,120]
[393893350,1763075094980,-202.292279,0.0004344,120]
[393893351,1763075095006,-202.292279,0.0004344,120]
[393893352,1763075095030,-151.0,0.0004344,120]
[393893353,1763075095057,-151.0,0.0004344,120]
[393893354,1763075095083,-151.0,0.0004344,120]
[393893355,1763075095107,-154.684631,0.0004344,120]
[393893356,1763075095220,-151.0,0.0004344,120]
[393893357,1763075095243,-151.0,0.0004344,120]
[393893358,1763075095267,-151.0,0.0004344,120]
[393893359,1763075095290,-151.0,0.0004344,120]
[393893361,1763075095315,-151.0,0.0004344,120]
[393893362,1763075095338,-151.0,0.0004344,120]
[393893363,1763075095362,-151.0,0.0004344,120]
[393893364,1763075095385,-151.0,0.0004344,120]
[393893365,1763075095409,-151.0,0.0004344,30]
[393893366,1763075095434,-169.907716,0.0004344,120]
[393893367,1763075095459,-169.907716,0.0004344,120]
[393893368,1763075095484,-169.907716,0.0004344,120]
[393893369,1763075095508,-169.907716,0.0004344,120]
[393893370,1763075095534,-171.864591,0.0004344,120]
[393893371,1763075095558,-151.0,0.0004344,120]
[393893372,1763075095581,-151.0,0.0004344,120]
[393893373,1763075095604,-151.0,0.0004344,120]
[393893374,1763075095626,-151.0,0.0004344,120]
[393893375,1763075095649,-151.0,0.0004344,120]
[393893376,1763075095672,-151.0,0.0004344,120]
[393893377,1763075095695,-213.586974,0.0004344,120]
[393893378,1763075095719,-802.303226,0.0004344,120]
[393893379,1763075095743,-802.303226,0.0004344,120]
[393893380,1763075095770,-802.303226,0.0004344,120]
[393893381,1763075095795,-802.303226,0.0004344,120]
[393893382,1763075095818,-484.66,0.00044,30]
[393893383,1763075095843,-334.0,0.00044195,120]
[393893384,1763075095868,-334.0,0.00045183,120]
[393893385,1763075095893,-335.0,0.00045322,30]
[393893386,1763075095915,-1005388.5672,0.0004544,30]
[393893387,1763075095943,-1220.956427,0.0004544,120]
[393893388,1763075095966,-1220.956427,0.0004544,120]
[393893389,1763075095993,-1220.956427,0.0004544,120]
[393893390,1763075096016,-1220.956427,0.0004544,120]
[393893391,1763075096042,-151.0,0.0004544,120]
[393893392,1763075096065,-151.0,0.0004544,120]
[393893393,1763075096091,-205.09816,0.0004544,120]
[393893394,1763075096115,-151.0,0.0004544,120]
[393893395,1763075096139,-151.0,0.0004544,120]
[393893396,1763075096163,-151.0,0.0004544,120]
[393893397,1763075096187,-202.292279,0.0004544,120]
[393893398,1763075096210,-202.292279,0.0004544,120]
[393893399,1763075096236,-202.292279,0.0004544,120]
[393893400,1763075096260,-202.292279,0.0004544,120]
[393893401,1763075096285,-151.0,0.0004544,120]
[393893402,1763075096310,-151.0,0.0004544,120]
[393893403,1763075096334,-151.0,0.0004544,120]
[393893404,1763075096358,-170.352698,0.0004544,120]
[393893405,1763075096382,-151.0,0.0004544,120]
[393893406,1763075096406,-151.0,0.0004544,120]
[393893407,1763075096430,-151.0,0.0004544,120]
[393893408,1763075096454,-151.0,0.0004544,120]
[393893409,1763075096477,-151.0,0.0004544,120]
[393893410,1763075096501,-151.0,0.0004544,120]
[393893411,1763075096525,-151.0,0.0004544,120]
[393893412,1763075096549,-151.0,0.0004544,30]
[393893413,1763075096573,-169.907716,0.0004544,120]
[393893414,1763075096597,-169.907716,0.0004544,120]
[393893415,1763075096621,-169.907716,0.0004544,120]
[393893416,1763075096645,-169.907716,0.0004544,120]
[393893417,1763075096668,-151.0,0.0004544,120]
[393893418,1763075096692,-151.0,0.0004544,120]
[393893419,1763075096714,-153.648193,0.0004544,120]
[393893420,1763075096737,-151.0,0.0004544,120]
[393893421,1763075096762,-802.303226,0.0004544,120]
[393893422,1763075096786,-802.303226,0.0004544,120]
[393893423,1763075096810,-802.303226,0.0004544,120]
[393893424,1763075096835,-802.303226,0.0004544,120]
[393893425,1763075096859,-334.0,0.00045686,30]
[393893426,1763075096883,-335.0,0.0004627,120]
[393893427,1763075096909,-335.0,0.00046951,30]
[393893428,1763075096935,-484.66,0.000473,30]
[393893429,1763075096958,-561669.5906,0.0004744,30]
[393893430,1763075096981,-1220.956427,0.0004744,120]
[393893431,1763075097008,-1220.956427,0.0004744,120]
[393893432,1763075097032,-1220.956427,0.0004744,120]
[393893433,1763075097056,-1220.956426,0.0004744,120]
[393893434,1763075097081,-151.0,0.0004744,120]
[393893435,1763075097106,-151.0,0.0004744,120]
[393893436,1763075097129,-285.419436,0.0004744,120]
[393893437,1763075097153,-239.5863,0.0004744,120]
[393893438,1763075097177,-202.292279,0.0004744,120]
[393893439,1763075097200,-202.292279,0.0004744,120]
[393893440,1763075097224,-202.292279,0.0004744,120]
[393893441,1763075097347,-202.292283,0.0004744,120]
[393893442,1763075097371,-151.0,0.0004744,120]
[393893443,1763075097397,-151.0,0.0004744,120]
[393893444,1763075097421,-271.889532,0.0004744,120]
[393893445,1763075097443,-165.008385,0.0004744,120]
[393893446,1763075097467,-151.0,0.0004744,120]
[393893447,1763075097491,-151.0,0.0004744,120]
[393893448,1763075097523,-151.0,0.0004744,120]
[393893449,1763075097545,-151.0,0.0004744,120]
[393893450,1763075097568,-151.0,0.0004744,120]
[393893451,1763075097591,-151.0,0.0004744,30]
[393893452,1763075097615,-169.907716,0.0004744,120]
[393893453,1763075097638,-169.907716,0.0004744,120]
[393893454,1763075097661,-169.907716,0.0004744,120]
[393893455,1763075097684,-169.907716,0.0004744,120]
[393893456,1763075097707,-151.0,0.0004744,120]
[393893457,1763075097731,-151.0,0.0004744,120]
[393893458,1763075097754,-153.0,0.00047697,30]
[393893459,1763075097779,-164.1708306,0.00047697,30]
[393893460,1763075097802,-164.1708306,0.00047697,30]
[393893461,1763075097825,-164.1708306,0.00047697,30]
[393893462,1763075097848,-164.1708306,0.00047697,30]
[393893463,1763075097872,-164.1708306,0.00047697,30]
[393893464,1763075097896,-164.1708306,0.00047697,30]
[393893465,1763075097918,-164.1708306,0.00047697,30]
[393893466,1763075097940,-164.1708306,0.00047697,30]
[393893467,1763075097963,-164.1708306,0.00047697,30]
[393893468,1763075097985,-164.1708306,0.00047697,30]
[393893469,1763075098012,-449335.6725,0.0004944,30]
[393893470,1763075098036,-151.0,0.0004944,120]
[393893471,1763075098060,-151.0,0.0004944,120]
[393893472,1763075098082,-190.73521017,0.0004944,120]
[393893473,1763075098105,-151.0,0.0004944,120]
[393893474,1763075098129,-282.773683,0.0004944,120]
[393893475,1763075098152,-236.371695,0.0004944,30]
[393893476,1763075098177,-169.907716,0.0004944,120]
[393893477,1763075098200,-169.907716,0.0004944,120]
[393893478,1763075098223,-169.907716,0.0004944,120]
[393893479,1763075098246,-169.907714,0.0004944,120]
[393893480,1763075098268,-151.0,0.0004944,120]
[393893481,1763075098293,-168.018448,0.0004944,120]
[393893482,1763075098324,-151.0,0.0004944,120]
[393893483,1763075098355,-802.303226,0.0004944,120]
[393893484,1763075098383,-802.303226,0.0004944,120]
[393893485,1763075098416,-802.303226,0.0004944,120]
[393893486,1763075098447,-802.303226,0.0004944,120]
[393893487,1763075098480,-393168.7134,0.0005144,30]
[393893488,1763075098512,-337001.7543,0.0005344,30]
[393893489,1763075098541,-500.0,0.00054495,120]
[393893490,1763075098569,-500.0,0.00054495,120]
[393893491,1763075098595,-541.08336953,0.00054495,120]
[393893492,1763075098621,-151.0,0.00054495,120]
[393893496,1763075101961,400.0,0.00039746,5]
[393893499,1763075103314,400.0,0.00039746,5]
[393893500,1763075103464,1600.0,0.00039746,5]
[393893502,1763075108824,199.0,0.00039689,14]
[393893503,1763075109068,199.0,0.00040236,15]
[393893504,1763075109294,199.0,0.00040784,16]
[393893505,1763075109629,156.527824,0.0004344,120]
[393893506,1763075110200,250.0,0.00054795,30]
[393893510,1763075119460,1593.84,0.000398,14]
[393893511,1763075120067,-1197822.80326108,0.00039747,20]
[393893513,1763075122449,339.27,0.000398,30]
[393893533,1763075151097,150.0,0.00031487,2]
[393893534,1763075151492,167.78,0.00034349,2]
[393893537,1763075151893,251.67,0.00037211,2]
[393893539,1763075152379,335.56,0.00040074,2]
[393893556,1763075182560,171.0,0.00035,120]
[393893557,1763075199082,230.23012401,0.00040811,6]
[393893561,1763075222313,3622.28809231,0.00038369,2]
[393893562,1763075222493,2197.26486361,0.0004016,2]
[393893563,1763075222600,3622.28809231,0.00038777,2]
[393893564,1763075222900,3622.28809231,0.00038976,2]
[393893565,1763075223205,3622.28809231,0.0003945,2]
[393893566,1763075223274,2197.26486361,0.00040313,2]
[393893568,1763075223500,3622.28809231,0.00039464,2]
[393893569,1763075223591,2197.26486361,0.00040844,2]
[393893570,1763075223796,3622.28809231,0.00039824,2]
[393893571,1763075224149,3622.28809231,0.00040121,2]
[393893572,1763075224447,3622.28809235,0.00040482,2]
[393893581,1763075227110,-445.62014742,0.00041059,5]
[393893588,1763075228586,150.0,0.00031355,2]
[393893590,1763075228999,150.0,0.00034206,2]
[393893592,1763075229453,217.12,0.00037056,2]
[393893594,1763075229889,289.49,0.00039907,2]
[393893611,1763075233102,-104.37985258,0.00041059,5]
[393893612,1763075233122,-132.67972443,0.0004106,3]
[393893661,1763075239095,-2014.76027557,0.0004106,3]
[393893662,1763075239115,-1073.72,0.0004106,3]
[393893663,1763075239134,-536.86,0.0004106,3]
[393893664,1763075239154,-164.668734,0.00041096,2]
[393893665,1763075239174,-2197.26486364,0.00041323,2]
[393893666,1763075239193,-199.0,0.00041332,17]
[393893667,1763075239215,-151.0,0.0004144,7]
[393893669,1763075239236,-151.0,0.0004144,7]
[393893670,1763075239255,-151.0,0.0004144,7]
[393893671,1763075239274,-151.0,0.0004144,28]
[393893672,1763075239294,-151.0,0.0004144,15]
[393893673,1763075239315,-151.0,0.0004144,15]
[393893674,1763075239334,-500.0,0.0004145,10]
[393893676,1763075239353,-500.0,0.00041746,10]
[393893677,1763075239372,-2895.1305234,0.00041751,4]
[393893707,1763075243086,-2104.8694766,0.00041751,4]
[393893709,1763075243108,-160.0,0.00041788,2]
[393893710,1763075243130,-199.0,0.0004188,18]
[393893711,1763075243154,-500.0,0.00042036,10]
[393893713,1763075243177,-153.468296,0.00042058,7]
[393893714,1763075243199,-150.0,0.00042058,120]
[393893715,1763075243221,-200.21657096,0.00042075,6]
[393893716,1763075243243,-495.18708248,0.00042294,10]
[393893717,1763075243264,-260.0,0.00042335,2]
[393893718,1763075243287,-199.0,0.00042428,19]
[393893719,1763075243308,-231.74574122,0.00042584,10]
[393893734,1763075252059,153.4683,0.000398,20]
[393893736,1763075253090,-795.36121497,0.00042584,10]
[393893738,1763075253112,-152.81,0.00042756,3]
[393893739,1763075253138,-361.86,0.00042757,2]
[393893740,1763075253166,-360.0,0.00042883,2]
[393893741,1763075253194,-199.0,0.00042976,20]
[393893742,1763075253216,-160.0,0.00043123,2]
[393893743,1763075253237,-277.14650804,0.00043362,6]
[393893744,1763075253258,-460.0,0.00043431,2]
[393893745,1763075253279,-151.0,0.0004344,28]
[393893746,1763075253299,-151.0,0.0004344,15]
[393893747,1763075253318,-151.0,0.0004344,15]
[393893748,1763075253340,-4205.53363886,0.0004344,2]
[393893774,1763075279891,211.19,0.00024975,2]
[393893775,1763075306263,150.0,0.00030593,2]
[393893776,1763075306684,150.0,0.00033374,2]
[393893777,1763075307081,172.5,0.00036155,2]
[393893778,1763075307466,230.0,0.00038936,2]
[393893790,1763075383841,150.0,0.00030602,2]
[393893791,1763075384232,150.0,0.00033384,2]
[393893792,1763075384653,150.0,0.00036166,2]
[393893793,1763075385057,194.24,0.00038948,2]
[393893798,1763075405196,2000.0,0.0004,30]
[393893800,1763075410248,302.74518,0.00038148,2]
[393893801,1763075422265,160.0,0.000375,2]
[393893802,1763075422542,260.0,0.00038048,2]
[393893803,1763075422912,360.0,0.00038596,2]
[393893804,1763075423268,460.0,0.00039144,2]
[393893805,1763075423625,560.0,0.00039692,2]
[393893806,1763075423953,660.0,0.0004024,2]
[393893807,1763075424280,760.0,0.00040788,2]
[393893822,1763075432330,-517.0541297,0.00041336,2]
[393893826,1763075432377,-342.9458703,0.00041336,2]
[393893827,1763075432386,-242.8,0.0004173,2]
[393893828,1763075432396,-960.0,0.00041884,2]
[393893829,1763075432404,-1060.0,0.00042432,2]
[393893830,1763075432413,-1388.0497096,0.0004283,2]
[393893831,1763075432424,-1160.0,0.00042979,2]
[393893832,1763075432435,-168.59697853,0.00043424,120]
[393893833,1763075432444,-2047.00662212,0.0004344,2]
[393893834,1763075432454,-199.0,0.00043524,21]
[393893835,1763075432463,-946.60662878,0.00043527,2]
[393893836,1763075432472,-550.0,0.00043807,5]
[393893837,1763075432483,-1870.0,0.00043808,2]
[393893838,1763075432492,-153.468296,0.00043875,10]
[393893839,1763075432502,-1870.0,0.00043968,2]
[393893840,1763075432512,-334.0,0.00043999,7]
[393893841,1763075432521,-177.0,0.00044058,120]
[393893842,1763075432530,-199.0,0.00044072,22]
[393893843,1763075432539,-168.0,0.00044116,2]
[393893844,1763075432549,-1870.0,0.00044178,120]
[393893845,1763075432558,-500.0,0.00044181,10]
[393893846,1763075432567,-777000.0,0.000442,2]
[393893847,1763075432577,-12272.7,0.000442,14]
[393893848,1763075432586,-334.0,0.00044261,2]
[393893849,1763075432595,-153.468296,0.000443,10]
[393893850,1763075432605,-492.78,0.00044447,2]
[393893851,1763075432614,-291.36,0.00044512,2]
[393893852,1763075432624,-344.30807481,0.00044604,6]
[393893853,1763075432634,-199.0,0.0004462,23]
[393893854,1763075432644,-608.31976576,0.00044729,10]
[393893855,1763075432652,-335.0,0.00044788,7]
[393893856,1763075432661,-920.92049604,0.00044926,6]
[393893857,1763075432669,-334.0,0.00045048,2]
[393893858,1763075432677,-199.0,0.00045168,24]
[393893859,1763075432686,-622.66783539,0.00045207,2]
[393893860,1763075432695,-354.55017775,0.00045207,2]
[393893861,1763075432704,-1120.8021037,0.00045207,2]
[393893862,1763075432713,-749.55532857,0.00045207,2]
[393893863,1763075432722,-334.0,0.0004521,7]
[393893864,1763075432731,-638.19031995,0.00045255,2]
[393893865,1763075432740,-151.0,0.0004544,15]
[393893866,1763075432749,-151.0,0.0004544,15]
[393893867,1763075432758,-168.0,0.00045449,2]
[393893868,1763075432768,-431.2823332,0.00045473,2]
[393893869,1763075432777,-332.57029954,0.00045593,2]
[393893870,1763075432786,-500.0,0.00045604,10]
[393893871,1763075432795,-500.0,0.00045604,10]
[393893872,1763075432804,-199.0,0.00045716,25]
[393893873,1763075432814,-1870.0,0.00045756,7]
[393893874,1763075432825,-1992.53707324,0.00045845,2]
[393893875,1763075432834,-334.0,0.00045902,7]
[393893876,1763075432843,-204.0,0.00046058,120]
[393893877,1763075432852,-1000.0,0.00046152,10]
[393893878,1763075432861,-1000.0,0.00046152,10]
[393893879,1763075432870,-225.6286586,0.00046152,10]
[393893880,1763075432879,-168.0,0.00046205,2]
[393893881,1763075432887,-199.0,0.00046264,26]
[393893882,1763075432896,-334.0,0.00046288,2]
[393893883,1763075432906,-1349.19959143,0.00046314,2]
[393893884,1763075432915,-334.0,0.00046398,2]
[393893885,1763075432926,-770.0,0.00046542,5]
[393893886,1763075432936,-12272.7,0.000466,14]
[393893887,1763075432945,-334.0,0.00046673,7]
[393893888,1763075432955,-500.0,0.00046731,10]
[393893889,1763075432964,-190.88016885,0.00046731,10]
[393893890,1763075432973,-199.0,0.00046812,27]
[393893891,1763075432982,-185.8176324,0.00046978,30]
[393893892,1763075432991,-335.0,0.00046979,7]
[393893893,1763075433000,-334.0,0.00047165,2]
[393893894,1763075433010,-335.0,0.00047211,7]
[393893895,1763075433019,-1000.0,0.00047279,10]
[393893896,1763075433028,-335.0,0.00047285,2]
[393893897,1763075433037,-339.92,0.00047294,2]
[393893898,1763075433046,-335.0,0.00047312,2]
[393893899,1763075433056,-335.0,0.00047332,2]
[393893900,1763075433068,-206.13827361,0.0004736,28]
[393893901,1763075433077,-1108.58603217,0.00047393,6]
[393893902,1763075433086,-151.0,0.0004744,15]
[393893903,1763075433096,-261.149007,0.0004744,15]
[393893904,1763075433105,-334.0,0.0004753,2]
[393893905,1763075433118,-164.1708306,0.00047697,30]
[393893906,1763075433127,-164.1708306,0.00047697,30]
[393893907,1763075433136,-164.1708306,0.00047697,30]
[393893908,1763075433145,-164.1708306,0.00047697,30]
[393893909,1763075433154,-154.9707659,0.00047697,30]
[393893910,1763075433163,-164.1708306,0.00047697,30]
[393893911,1763075433173,-164.1708306,0.00047697,30]
[393893912,1763075433182,-164.1708306,0.00047697,30]
[393893913,1763075433194,-164.1708306,0.00047697,30]
[393893914,1763075433203,-164.1708306,0.00047697,30]
[393893915,1763075433213,-306.0918498,0.00047697,30]
[393893916,1763075433222,-153.0,0.00047697,30]
[393893917,1763075433233,-395.0990739,0.00047697,30]
[393893918,1763075433242,-191.1935952,0.00047697,30]
[393893919,1763075433251,-403.2567699,0.00047697,30]
[393893920,1763075433261,-300.2814472,0.00047697,30]
[393893921,1763075433271,-162.8757457,0.00047697,30]
[393893922,1763075433280,-395.0990739,0.00047697,30]
[393893923,1763075433290,-153.0,0.00047697,30]
[393893924,1763075433298,-191.1935952,0.00047697,30]
[393893925,1763075433308,-300.2814472,0.00047697,30]
[393893926,1763075433319,-153.0,0.00047697,30]
[393893927,1763075433328,-191.1935952,0.00047697,30]
[393893928,1763075433337,-300.2814472,0.00047697,30]
[393893929,1763075433346,-153.0,0.00047697,30]
[393893930,1763075433354,-300.2814472,0.00047697,30]
[393893931,1763075433364,-300.2814472,0.00047697,30]
[393893932,1763075433373,-690.4100424,0.00047697,30]
[393893933,1763075433382,-386.3221791,0.00047697,30]
[393893934,1763075433391,-3113.33917694,0.00047792,2]
[393893935,1763075433400,-598.62653916,0.00047814,2]
[393893936,1763075433408,-1134.56056879,0.00047897,2]
[393893937,1763075433417,-164.668734,0.00047945,2]
[393893938,1763075433426,-231.0,0.00048058,120]
[393893939,1763075433435,-2398.57705142,0.00048527,2]
[393893940,1763075433444,-8000.0,0.00049,120]
[393893941,1763075433453,-2069.99904497,0.00049041,6]
[393893942,1763075433462,-523.17483354,0.00049055,10]
[393893943,1763075433471,-800.06541757,0.00049063,6]
[393893944,1763075433480,-500.0,0.00049391,7]
[393893945,1763075433489,-151.0,0.0004944,15]
[393893946,1763075433498,-1077.0,0.00049448,5]
[393893947,1763075433508,-1000.0,0.00049939,7]
[393893948,1763075433517,-1064.22495851,0.00050035,2]
[393893949,1763075433526,-258.0,0.00050058,120]
[393893950,1763075433536,-388.48,0.00050076,2]
[393893951,1763075433545,-500.0,0.00050487,7]
[393893952,1763075433554,-192.31,0.000505,14]
[393893953,1763075433563,-3747.77664285,0.00050739,2]
[393893954,1763075433575,-2491.82425381,0.00051857,6]
[393893955,1763075433584,-285.0,0.00052058,120]
[393893956,1763075433593,-1662.85149768,0.00052257,2]
[393893957,1763075433602,-1509.0,0.00052535,15]
[393893958,1763075433611,-22000.0,0.0005261,14]
[393893959,1763075433620,-34272.6167843,0.00052617,4]
[393893960,1763075433629,-22000.0,0.00052618,14]
[393893961,1763075433639,-22000.0,0.00052627,14]
[393893962,1763075433649,-22000.0,0.00052636,14]
[393893963,1763075433658,-600.0,0.000528,2]
[393893964,1763075433667,-431.2823332,0.00052856,2]
[393893965,1763075433677,-437.04,0.00052858,2]
[393893966,1763075433686,-1375.85506695,0.0005301,6]
[393893967,1763075433695,-600.0,0.0005335,2]
[393893968,1763075433704,-600.0,0.000539,2]
[393893969,1763075433711,-312.0,0.00054058,120]
[393893970,1763075433720,-600.0,0.0005445,2]
[393893971,1763075433729,-151.7717868,0.00054495,2]
[393893972,1763075433738,-500.0,0.00054495,2]
[393893973,1763075433747,-500.0,0.00054495,2]
[393893974,1763075433756,-500.0,0.00054495,2]
[393893975,1763075433765,-500.0,0.00054495,2]
[393893976,1763075433774,-500.0,0.00054495,2]
[393893977,1763075433784,-500.0,0.00054495,2]
[393893978,1763075433793,-500.0,0.00054495,2]
[393893979,1763075433802,-500.0,0.00054495,2]
[393893980,1763075433812,-275.39840939,0.00054495,2]
[393893981,1763075433824,-151.42696347,0.00054495,120]
[393893982,1763075433833,-34272.6167843,0.00054784,4]
[393893983,1763075433842,-151.0,0.00054794,30]
[393893984,1763075433851,-156.587,0.00054794,30]
[393893985,1763075433860,-162.380719,0.00054794,30]
[393893986,1763075433869,-168.3888056,0.00054794,30]
[393893987,1763075433877,-174.61919141,0.00054794,30]
[393893988,1763075433886,-181.08010149,0.00054794,30]
[393893989,1763075433895,-187.78006525,0.00054794,30]
[393893990,1763075433905,-194.72792766,0.00054794,30]
[393893991,1763075433914,-201.93286099,0.00054794,30]
[393893992,1763075433923,-209.40437684,0.00054794,30]
[393893993,1763075433932,-250.0,0.00054794,30]
[393893994,1763075433941,-217.15233878,0.00054794,30]
[393893995,1763075433949,-250.0,0.00054794,30]
[393893996,1763075433958,-225.18697532,0.00054794,30]
[393893997,1763075434051,-250.0,0.00054794,30]
[393893998,1763075434060,-250.0,0.00054794,30]
[393893999,1763075434071,-233.51889341,0.00054794,30]
[393894000,1763075434080,-250.0,0.00054794,30]
[393894001,1763075434089,-242.15909246,0.00054794,30]
[393894002,1763075434098,-250.0,0.00054794,30]
[393894003,1763075434111,-251.11897888,0.00054794,30]
[393894004,1763075434120,-250.0,0.00054794,30]
[393894005,1763075434129,-260.4103811,0.00054794,30]
[393894006,1763075434139,-250.0,0.00054794,30]
[393894007,1763075434148,-270.0455652,0.00054794,30]
[393894008,1763075434158,-250.0,0.00054794,30]
[393894009,1763075434167,-280.03725112,0.00054794,30]
[393894010,1763075434176,-250.0,0.00054794,30]
[393894011,1763075434188,-290.39862941,0.00054794,30]
[393894012,1763075434196,-250.0,0.00054794,30]
[393894013,1763075434204,-301.1433787,0.00054794,30]
[393894014,1763075434213,-250.0,0.00054794,30]
[393894015,1763075434222,-250.0,0.00054794,30]
[393894016,1763075434231,-250.0,0.00054794,30]
[393894017,1763075434240,-164.668734,0.00054795,2]
[393894018,1763075434249,-150.0,0.00054795,15]
[393894019,1763075434258,-600.0,0.00055,2]
[393894020,1763075434267,-600.0,0.0005555,2]
[393894021,1763075434276,-485.6,0.00055641,2]
[393894022,1763075434285,-575.0,0.00055816,15]
[393894023,1763075434294,-171.0,0.00056,120]
[393894024,1763075434303,-192.31,0.00056,14]
[393894025,1763075434312,-339.0,0.00056058,120]
[393894026,1763075434323,-902.04559829,0.000561,2]
[393894027,1763075434331,-250.0,0.00056164,15]
[393894028,1763075434341,-119948.17180798,0.0005643,5]
[393894081,1763075438200,-1220.82271073,0.000501,14]
[393894083,1763075438213,-1618.48555285,0.000501,14]
[393894085,1763075438224,-418.49770858,0.000501,14]
[393894104,1763075438407,-824.9679291,0.000501,14]
[393894107,1763075438419,-488.04394154,0.000501,14]
[393894109,1763075438430,-4261.27661584,0.000501,14]
[393894332,1763075440726,-49.51334971,0.000501,14]
[393894333,1763075440738,-3391.09219165,0.000501,14]
[393894334,1763075440748,-1719.52563646,0.00056,14]
[393894360,1763075443538,-1373.84630687,0.00056,14]
[393894361,1763075443549,-9179.32805667,0.00056,14]